lending/lending_fUSD_20240510
["ID","MTS","AMOUNT","RATE_DAILY","PERIOD"]
[326793318,1715377842491,-4316.5918931,0.00013,2]
[326793319,1715377842502,-28614.81782127,0.00013,2]
[326793320,1715377842513,-406.24944498,0.00013,2]
[326793321,1715377842524,-536147.58756431,0.00013,2]
[326793358,1715377843367,-4212.47614198,0.00013,2]
[326793361,1715377843378,-2906.82349235,0.00013,2]
[326793378,1715377843739,-793128.92669676,0.00013,2]
[326793383,1715377848047,-155.0,0.00012799,2]
[326793384,1715377848061,-660.26017648,0.00013,2]
[326793385,1715377848074,-283.36085128,0.00013,2]
[326793386,1715377848089,-622.598,0.00013,2]
[326793580,1715379032704,-302.15867583,0.00012293,2]
[326793581,1715379032715,-525.09249059,0.00012294,2]
[326793582,1715379032724,-159.75050637,0.00012295,2]
[326793583,1715379032734,-401.42749512,0.00012392,2]
[326793584,1715379032745,-200.0,0.000124,4]
[326793585,1715379032755,-500.0,0.000125,4]
[326793586,1715379032764,-700.0,0.000126,4]
[326793587,1715379032774,-507.46,0.000127,2]
[326793588,1715379032783,-1000.0,0.000127,4]
[326793589,1715379032793,-1300.0,0.000128,4]
[326793590,1715379032802,-312.05945904,0.000128,2]
[326793591,1715379032812,-150.0,0.00012881,2]
[326793592,1715379032821,-250.0,0.00012882,2]
[326793593,1715379032830,-1620.73441283,0.00012882,2]
[326793594,1715379032842,-308.775,0.00012882,2]
[326793595,1715379032854,-2084.81,0.00012882,2]
[326793596,1715379032866,-301.90641716,0.00012882,2]
[326793597,1715379032877,-1066.90712914,0.00012882,2]
[326793598,1715379032889,-2035.21704087,0.00012882,2]
[326793599,1715379032899,-2014.75245949,0.00012899,2]
[326793600,1715379032908,-10000.0,0.000129,2]
[326793601,1715379032917,-1000.0,0.000129,2]
[326793602,1715379032927,-9010.51677297,0.000129,2]
[326793603,1715379032937,-1000.0,0.000129,2]
[326793604,1715379032947,-184.18194573,0.000129,2]
[326793605,1715379032957,-815.2602,0.000129,2]
[326793606,1715379032967,-10689.17081262,0.000129,2]
[326793607,1715379032978,-14374.18724896,0.000129,2]
[326793617,1715379038288,-384.2290936,0.000129,2]
[326793618,1715379038299,-520.089,0.000129,2]
[326793619,1715379038310,-491.306112,0.000129,2]
[326793620,1715379038321,-335.39622056,0.000129,2]
[326793621,1715379038332,-2719.79495747,0.000129,2]
[326793622,1715379038343,-302.5936972,0.000129,2]
[326793623,1715379038354,-318857.91725452,0.000129,2]
[326793624,1715379038365,-5236.32537991,0.000129,2]
[326793625,1715379038379,-727.3743122,0.000129,2]
[326793626,1715379038390,-1165.6,0.000129,2]
[326793627,1715379038402,-497.89032569,0.000129,2]
[326793650,1715379038750,-501119.85686816,0.000129,2]
[326793652,1715379038764,-345147.26730982,0.000129,2]
[326793664,1715379040266,-621.10832768,0.000129,2]
[326793666,1715379040278,-619.11585024,0.000129,2]
[326793667,1715379040289,-292.3765139,0.000129,2]
[326793668,1715379040301,-4882.84555625,0.000129,2]
[326793669,1715379042091,-2743.21451105,0.000129,2]
[326793670,1715379042105,-2191.8796206,0.000129,2]
[326793671,1715379042119,-1513.29975213,0.000129,2]
[326793672,1715379042133,-404323.93429705,0.000129,2]
[326793674,1715379042146,-71588.31616199,0.000129,2]
[326793681,1715379042426,-1035.38225036,0.000129,2]
[326793682,1715379042444,-687.549999,0.000129,2]
[326793683,1715379042458,-333.81892786,0.000129,2]
[326793697,1715379043770,-77161.11730545,0.000129,2]
[326793698,1715379043779,-7500.0,0.000129,2]
[326793699,1715379043789,-200.0,0.000129,4]
[326793700,1715379043797,-417.4225848,0.000129,2]
[326793701,1715379043807,-201.36673113,0.000129,2]
[326793702,1715379043816,-1000.0,0.0001291,2]
[326793703,1715379043825,-1000.0,0.00012993,2]
[326793704,1715379043835,-320.0,0.00012994,2]
[326793705,1715379043844,-500.0,0.00012998,2]
[326793706,1715379043853,-1270.93207056,0.00012998,2]
[326793707,1715379043863,-320.23433176,0.00012998,2]
[326793708,1715379043872,-2184.78477533,0.00012998,2]
[326793709,1715379043882,-328.95065636,0.00012998,2]
[326793710,1715379043891,-4396.89423792,0.00012998,2]
[326793711,1715379043900,-243.04831926,0.00012999,2]
[326793712,1715379043909,-202.60607836,0.00012999,2]
[326793713,1715379043918,-1037.98964315,0.00012999,3]
[326793714,1715379043927,-1037.98964315,0.00012999,3]
[326793715,1715379043936,-1037.98964315,0.00012999,3]
[326793716,1715379043945,-2836685.49252976,0.00013,2]
[326793717,1715379044143,-5878.4156058,0.00013,2]
[326793719,1715379044154,-5815.85887887,0.00013,2]
[326793722,1715379044165,-118436.46183706,0.00013,2]
[326793724,1715379044177,-22073.21387535,0.00013,2]
[326793726,1715379044187,-731.4392052,0.00013,2]
[326793728,1715379044199,-2186.37961417,0.00013,2]
[326793731,1715379044210,-2467.46,0.00013,2]
[326793791,1715379046205,-118316.39458861,0.00013,2]
[326793793,1715379046217,-2386.86887887,0.00013,2]
[326793795,1715379046228,-115622.67404105,0.00013,2]
[326793797,1715379046240,-69583.65089716,0.00013,2]
[326793799,1715379046251,-351.94684962,0.00013,2]
[326793800,1715379046263,-1527.36348362,0.00013,2]
[326793801,1715379046274,-958.14681319,0.00013,2]
[326793823,1715379046831,344.05,0.00010959,2]
[326793824,1715379056572,547.3843104,0.000104,2]
[326793826,1715379150179,151.0,0.00021174,30]
[326793827,1715379150307,151.0,0.00020751,120]
[326793869,1715380232340,-302.15867583,0.00011789,2]
[326793870,1715380232350,-301.3,0.0001179,2]
[326793871,1715380232359,-3057.79124914,0.0001191,2]
[326793872,1715380232368,-533.84746218,0.00011911,2]
[326793873,1715380232378,-200.01,0.00011913,2]
[326793874,1715380232386,-435.3324613,0.00011959,2]
[326793875,1715380232398,-3037.3575387,0.00011959,2]
[326793876,1715380232407,-250.0,0.00011977,2]
[326793877,1715380232417,-2730.97036933,0.00012042,2]
[326793878,1715380232430,-3424.9510989,0.00012042,2]
[326793879,1715380232442,-833.80448237,0.00012042,2]
[326793880,1715380232453,-1627.23699014,0.00012042,2]
[326793881,1715380232463,-376.2556118,0.00012042,2]
[326793882,1715380233149,-860.35582076,0.00012042,2]
[326793883,1715380233161,-419.67248778,0.00012042,2]
[326793884,1715380233172,-41.24313892,0.00012042,2]
[326793885,1715380233188,-152.71,0.00012474,2]
[326793886,1715380233197,-152.71,0.00012482,2]
[326793887,1715380233207,-499.99,0.00012482,2]
[326793888,1715380233217,-152.71,0.0001249,2]
[326793889,1715380233226,-152.71,0.00012497,2]
[326793890,1715380233235,-152.71,0.00012505,2]
[326793891,1715380233245,-152.71,0.00012513,2]
[326793892,1715380233255,-152.71,0.00012521,2]
[326793893,1715380233265,-152.71,0.00012529,2]
[326793894,1715380233274,-152.71,0.00012536,2]
[326793895,1715380233285,-800.0,0.000126,4]
[326793896,1715380233294,-1000.0,0.00012628,2]
[326793897,1715380233303,-1600.0,0.000127,4]
[326793898,1715380233312,-2400.0,0.000128,4]
[326793899,1715380233322,-377.52818815,0.00012897,2]
[326793900,1715380233330,-155.0,0.00012897,2]
[326793901,1715380233339,-1212.7569798,0.00012897,2]
[326793902,1715380233348,-156.36648287,0.00012898,2]
[326793903,1715380233358,-3779.94856419,0.00012898,2]
[326793904,1715380233367,-41912.88878475,0.00012899,2]
[326793905,1715380233380,-10076.94638976,0.00012899,2]
[326793906,1715380233392,-4503.556761,0.00012899,2]
[326793907,1715380233403,-1229.285,0.00012899,2]
[326793908,1715380233415,-293.39062286,0.00012899,2]
[326793909,1715380233429,-482.676245,0.00012899,2]
[326793910,1715380233440,-7343.13933792,0.00012899,2]
[326793911,1715380233451,-607.31474073,0.00012899,2]
[326793912,1715380233463,-2373.05450546,0.00012899,2]
[326793913,1715380233474,-1966.22875406,0.00012899,2]
[326793914,1715380233486,-7549.84155807,0.00012899,2]
[326793915,1715380233498,-1641.7,0.00012899,2]
[326793916,1715380233509,-854.16488114,0.00012899,2]
[326793917,1715380233521,-464.47486671,0.00012899,2]
[326793918,1715380233532,-1132.38722525,0.00012899,2]
[326793953,1715380233943,-924.86543321,0.00012899,2]
[326793954,1715380233955,-1381.95190557,0.00012899,2]
[326793955,1715380233966,-3064.60664569,0.00012899,2]
[326793956,1715380233976,-1016.27333657,0.00012899,2]
[326793957,1715380233987,-308.68743525,0.00012899,2]
[326793958,1715380233998,-457.41762964,0.00012899,2]
[326793959,1715380234009,-2291.08562381,0.00012899,2]
[326793960,1715380234020,-4002.19079221,0.00012899,2]
[326793961,1715380234032,-158817.11296893,0.00012899,2]
[326793962,1715380234041,-10000.0,0.000129,2]
[326793963,1715380234051,-7445.65,0.000129,2]
[326793964,1715380234060,-1000.0,0.000129,2]
[326793965,1715380234069,-173.02267464,0.000129,2]
[326793966,1715380234078,-9335.98716888,0.000129,2]
[326793967,1715380234088,-3200.0,0.000129,4]
[326793968,1715380234097,-237.4013939,0.000129,2]
[326793969,1715380234106,-7500.0,0.000129,2]
[326793970,1715380234115,-206.82894028,0.000129,2]
[326793971,1715380234124,-3415.26216182,0.000129,2]
[326793972,1715380234135,-14652.8889744,0.00012996,2]
[326793973,1715380234144,-197.16050136,0.00012998,7]
[326793974,1715380234153,-155.0,0.00012998,2]
[326793975,1715380234163,-2397.21015954,0.00012998,2]
[326793976,1715380234172,-1000.0,0.00012999,2]
[326793977,1715380234183,-373.97275012,0.00012999,2]
[326793978,1715380234193,-839146.81111369,0.00013,2]
[326793979,1715380234205,-31420.96678108,0.00013,2]
[326793980,1715380234217,-21584.95682334,0.00013,2]
[326793981,1715380234228,-50044.26308057,0.00013,2]
[326793982,1715380234240,-304.34121688,0.00013,2]
[326793983,1715380234252,-166921.33386915,0.00013,2]
[326793984,1715380234263,-3649.70912852,0.00013,2]
[326793985,1715380234275,-11525.58191322,0.00013,2]
[326793986,1715380234287,-920.5160698,0.00013,2]
[326793987,1715380234298,-813.06510203,0.00013,2]
[326793988,1715380234310,-5902.51031461,0.00013,2]
[326793989,1715380234321,-2040.41244433,0.00013,2]
[326793990,1715380234332,-10464.03591591,0.00013,2]
[326793991,1715380234344,-293.26397614,0.00013,2]
[326793992,1715380234356,-650.23905597,0.00013,2]
[326793993,1715380234367,-154677.07446662,0.00013,2]
[326793994,1715380234557,-3110.10733275,0.00013,2]
[326793995,1715380234570,-904.96532417,0.00013,2]
[326793996,1715380234581,-357.46371413,0.00013,2]
[326793997,1715380234593,-2142.48428039,0.00013,2]
[326793998,1715380234604,-331.5,0.00013,2]
[326793999,1715380234615,-5479.2679418,0.00013,2]
[326794000,1715380234627,-854.70609405,0.00013,2]
[326794001,1715380234638,-1224.31720139,0.00013,2]
[326794002,1715380234654,-2335.98145631,0.00013,2]
[326794003,1715380234666,-2400.0,0.00013,2]
[326794018,1715380238239,-160.68292262,0.0001299,2]
[326794020,1715380238249,-970.03299824,0.00013,2]
[326794022,1715380238260,-609.29,0.00013,2]
[326794024,1715380238272,-392.35854745,0.00013,2]
[326794026,1715380238283,-8668.30132127,0.00013,2]
[326794029,1715380238431,-1808.07983494,0.00013,2]
[326794030,1715380238442,-292.39394109,0.00013,2]
[326794031,1715380238453,-361.81867662,0.00013,2]
[326794032,1715380238465,-3006.29999994,0.00013,2]
[326794033,1715380238476,-21864.71817945,0.00013,2]
[326794034,1715380238487,-269.25868758,0.00013,2]
[326794135,1715380240411,-712.87,0.00013,2]
[326794140,1715380240423,-394.8899399,0.00013,2]
[326794142,1715380240436,-460.63094984,0.00013,2]
[326794144,1715380240449,-1046.7296758,0.00013,2]
[326794146,1715380240460,-1147.94373023,0.00013,2]
[326794148,1715380240472,-896.82497611,0.00013,2]
[326794149,1715380240485,-492.31580113,0.00013,2]
[326794150,1715380240496,-489.59093316,0.00013,2]
[326794151,1715380240508,-583.612171,0.00013,2]
[326794152,1715380240521,-627.57,0.00013,2]
[326794153,1715380240534,-303.94329984,0.00013,2]
[326794154,1715380241478,-1735.92,0.00013,2]
[326794155,1715380241491,-7600.64259491,0.00013,2]
[326794156,1715380241532,-2902.90000174,0.00013,2]
[326794157,1715380242058,-3175.82164568,0.00013,2]
[326794158,1715380242072,-1542.11087236,0.00013,2]
[326794159,1715380242570,-320.41267278,0.000129,2]
[326794160,1715380242580,-2.46385987,0.00013,2]
[326794161,1715380242752,-50000.0,0.00013,2]
[326794162,1715380242768,-229778.04597203,0.00013,2]
[326794163,1715380242779,-476.2010242,0.00013,2]
[326794164,1715380242790,-1149.42897912,0.00013,2]
[326794165,1715380242802,-1999.7835296,0.00013,2]
[326794168,1715380242944,-455492.66584618,0.00013,2]
[326794170,1715380242953,-646368.05558855,0.00013,2]
[326794173,1715380242962,-344536.75621498,0.00013,2]
[326794176,1715380242971,-188.75172265,0.00013,2]
[326794179,1715380242980,-3000.0,0.00013,2]
[326794181,1715380242989,-7328.78,0.00013,2]
[326794183,1715380242998,-173.33,0.00013014,2]
[326794184,1715380243007,-168.73,0.00013049,2]
[326794185,1715380243016,-170.4,0.00013196,2]
[326794186,1715380243026,-7492.0,0.00013237,2]
[326794187,1715380243035,-705.99,0.00013425,2]
[326794188,1715380243046,-917.63,0.00013425,2]
[326794189,1715380243055,-168.8,0.00013504,2]
[326794190,1715380243064,-322.83109908,0.00013698,5]
[326794191,1715380243073,-200.0,0.00013699,2]
[326794192,1715380243082,-500.0,0.00013699,2]
[326794193,1715380243091,-964.15,0.00013699,2]
[326794194,1715380243100,-200.0,0.00013699,2]
[326794195,1715380243109,-2751.0,0.00013699,2]
[326794196,1715380243118,-466.33040226,0.000137,2]
[326794197,1715380243128,-646.49558005,0.00014098,2]
[326794201,1715380243136,-155.0,0.00014098,2]
[326794206,1715380243146,-1198.4432276,0.00014099,2]
[326794209,1715380243155,-238.0,0.000141,2]
[326794212,1715380243165,-808.0,0.000141,2]
[326794213,1715380243174,-610.0,0.000141,2]
[326794216,1715380243184,-438.0,0.000141,2]
[326794219,1715380243194,-421.0,0.000141,2]
[326794222,1715380243202,-1479.0,0.000141,2]
[326794225,1715380243212,-244.268,0.000141,2]
[326794229,1715380243222,-204.531,0.000141,2]
[326794231,1715380243231,-299.259,0.000141,2]
[326794234,1715380243241,-2448.0,0.000141,2]
[326794236,1715380243249,-1129.0,0.000141,2]
[326794238,1715380243259,-443.0,0.000141,2]
[326794260,1715380243528,-1642.0,0.000141,2]
[326794261,1715380243548,-223.0,0.000141,2]
[326794262,1715380243557,-3132.0,0.000141,2]
[326794263,1715380243567,-5899.0,0.000141,2]
[326794264,1715380243577,-2299.0,0.000141,2]
[326794265,1715380243586,-972.0,0.000141,2]
[326794266,1715380243596,-1396.0,0.000141,2]
[326794267,1715380243605,-5736.0,0.000141,2]
[326794268,1715380243615,-37815.0,0.000141,2]
[326794269,1715380243624,-2295.0,0.000141,2]
[326794270,1715380243633,-1000.0,0.00014207,2]
[326794271,1715380243643,-9335.98716879,0.00014259,2]
[326794272,1715380243652,-301.3,0.0001453,2]
[326794273,1715380243662,-320.0,0.00014618,2]
[326794274,1715380243671,-10000.0,0.00014674,2]
[326794275,1715380243682,-155.03386847,0.0001485,2]
[326794276,1715380243691,-159.03909377,0.00014999,2]
[326794277,1715380243700,-323.93670501,0.00015,2]
[326794278,1715380243709,-165.0,0.00015,2]
[326794279,1715380243719,-849.91851728,0.00015,2]
[326794280,1715380243728,-405.75658118,0.00015,2]
[326794281,1715380243737,-217.34147148,0.00015,2]
[326794282,1715380243746,-200.0,0.00015,2]
[326794283,1715380243756,-618.44971002,0.00015,2]
[326794284,1715380243766,-167.62462793,0.00015,2]
[326794285,1715380243777,-40666.0,0.00015,2]
[326794286,1715380243786,-830.0,0.000154,2]
[326794287,1715380243796,-5452.0,0.000154,2]
[326794288,1715380243806,-17705.0,0.000154,3]
[326794289,1715380243816,-155.47419777,0.000155,2]
[326794290,1715380243825,-9335.98716879,0.00015617,2]
[326794291,1715380243834,-1000.0,0.00015645,2]
[326794292,1715380243845,-17705.0,0.000157,5]
[326794293,1715380243855,-168.8,0.00015755,2]
[326794294,1715380243864,-1000.0,0.00015785,2]
[326794295,1715380243873,-168.73,0.00015818,2]
[326794296,1715380243882,-167.67,0.00015831,2]
[326794297,1715380243891,-167.0,0.00015831,2]
[326794298,1715380243901,-167.38,0.00015831,2]
[326794299,1715380243911,-3077.0200038,0.00016,2]
[326794300,1715380243920,-320.0,0.00016242,2]
[326794301,1715380243933,-173.33,0.00016267,2]
[326794302,1715380243942,-201.91735728,0.00016438,2]
[326794303,1715380243951,-700.5,0.00016438,2]
[326794304,1715380243961,-1226.23788858,0.000165,2]
[326794305,1715380243971,-1386.0,0.00016567,2]
[326794307,1715380243980,-651.24932317,0.00016601,2]
[326794309,1715380243990,-9335.98716879,0.00016976,2]
[326794312,1715380243999,-1044.573,0.000171,2]
[326794315,1715380244009,-820.141,0.000171,2]
[326794317,1715380244019,-3489.286,0.000171,2]
[326794319,1715380244028,-220.9,0.00017132,2]
[326794320,1715380244038,-301.3,0.00017269,2]
[326794321,1715380244048,-170.533,0.00017272,2]
[326794322,1715380244057,-1000.0,0.00017364,2]
[326794324,1715380244067,-10128.0,0.00017743,2]
[326794325,1715380244076,-500.0,0.00017743,2]
[326794326,1715380244086,-500.0,0.00017743,2]
[326794327,1715380244095,-500.0,0.00017743,2]
[326794328,1715380244105,-500.0,0.00017743,2]
[326794329,1715380244114,-500.0,0.00017743,2]
[326794330,1715380244123,-500.0,0.00017743,2]
[326794331,1715380244133,-500.0,0.00017743,2]
[326794332,1715380244142,-500.0,0.00017743,2]
[326794333,1715380244151,-500.0,0.00017743,2]
[326794334,1715380244161,-500.0,0.00017743,2]
[326794335,1715380244171,-500.0,0.00017743,2]
[326794336,1715380244179,-500.0,0.00017743,2]
[326794337,1715380244191,-500.0,0.00017743,2]
[326794338,1715380244200,-500.0,0.00017743,2]
[326794339,1715380244208,-500.0,0.00017743,2]
[326794340,1715380244218,-500.0,0.00017743,2]
[326794341,1715380244227,-500.0,0.00017743,2]
[326794342,1715380244236,-500.0,0.00017743,2]
[326794343,1715380244246,-500.0,0.00017743,2]
[326794344,1715380244255,-500.0,0.00017743,2]
[326794345,1715380244265,-500.0,0.00017743,2]
[326794346,1715380244274,-500.0,0.00017743,2]
[326794347,1715380244284,-500.0,0.00017743,2]
[326794348,1715380244293,-500.0,0.00017743,2]
[326794349,1715380244303,-500.0,0.00017743,2]
[326794350,1715380244312,-500.0,0.00017743,2]
[326794351,1715380244321,-500.0,0.00017743,2]
[326794352,1715380244331,-500.0,0.00017743,2]
[326794353,1715380244339,-500.0,0.00017743,2]
[326794354,1715380244348,-500.0,0.00017743,2]
[326794355,1715380244359,-500.0,0.00017743,2]
[326794356,1715380244368,-500.0,0.00017743,2]
[326794357,1715380244377,-500.0,0.00017743,2]
[326794358,1715380244387,-500.0,0.00017743,2]
[326794359,1715380244396,-500.0,0.00017743,2]
[326794360,1715380244405,-500.0,0.00017743,2]
[326794361,1715380244414,-500.0,0.00017743,2]
[326794362,1715380244424,-500.0,0.00017743,2]
[326794363,1715380244436,-500.0,0.00017743,2]
[326794364,1715380244445,-500.0,0.00017743,2]
[326794365,1715380244454,-500.0,0.00017743,2]
[326794366,1715380244463,-500.0,0.00017743,2]
[326794367,1715380244472,-500.0,0.00017743,2]
[326794368,1715380244482,-500.0,0.00017743,2]
[326794369,1715380244491,-500.0,0.00017743,2]
[326794370,1715380244501,-500.0,0.00017743,2]
[326794371,1715380244510,-500.0,0.00017743,2]
[326794372,1715380244520,-500.0,0.00017743,2]
[326794373,1715380244529,-500.0,0.00017743,2]
[326794374,1715380244538,-500.0,0.00017743,2]
[326794375,1715380244548,-500.0,0.00017743,2]
[326794376,1715380244557,-500.0,0.00017743,2]
[326794377,1715380244567,-500.0,0.00017743,2]
[326794378,1715380244576,-500.0,0.00017743,2]
[326794379,1715380244586,-500.0,0.00017743,2]
[326794380,1715380244595,-500.0,0.00017743,2]
[326794381,1715380244605,-500.0,0.00017743,2]
[326794382,1715380244614,-500.0,0.00017743,2]
[326794383,1715380244623,-500.0,0.00017743,2]
[326794384,1715380244633,-500.0,0.00017743,2]
[326794385,1715380244642,-500.0,0.00017743,2]
[326794386,1715380244651,-500.0,0.00017743,2]
[326794387,1715380244661,-500.0,0.00017743,2]
[326794388,1715380244670,-500.0,0.00017743,2]
[326794389,1715380244680,-500.0,0.00017743,2]
[326794390,1715380244690,-500.0,0.00017743,2]
[326794391,1715380244699,-500.0,0.00017743,2]
[326794392,1715380244707,-500.0,0.00017743,2]
[326794393,1715380244717,-500.0,0.00017743,2]
[326794394,1715380244726,-500.0,0.00017743,2]
[326794395,1715380244736,-500.0,0.00017743,2]
[326794396,1715380244745,-500.0,0.00017743,2]
[326794397,1715380244755,-500.0,0.00017743,2]
[326794398,1715380244769,-500.0,0.00017743,2]
[326794399,1715380244778,-500.0,0.00017743,2]
[326794400,1715380244787,-500.0,0.00017743,2]
[326794401,1715380244797,-500.0,0.00017743,2]
[326794402,1715380244807,-500.0,0.00017743,2]
[326794403,1715380244817,-500.0,0.00017743,2]
[326794404,1715380244826,-500.0,0.00017743,2]
[326794405,1715380244836,-500.0,0.00017743,2]
[326794406,1715380244848,-500.0,0.00017743,2]
[326794407,1715380244859,-500.0,0.00017743,2]
[326794408,1715380244868,-500.0,0.00017743,2]
[326794409,1715380244878,-500.0,0.00017743,2]
[326794410,1715380244887,-500.0,0.00017743,2]
[326794411,1715380244897,-500.0,0.00017743,2]
[326794412,1715380244906,-500.0,0.00017743,2]
[326794413,1715380244916,-500.0,0.00017743,2]
[326794414,1715380244926,-500.0,0.00017743,2]
[326794415,1715380244937,-500.0,0.00017743,2]
[326794416,1715380244946,-500.0,0.00017743,2]
[326794417,1715380244955,-500.0,0.00017743,2]
[326794418,1715380244964,-500.0,0.00017743,2]
[326794419,1715380244973,-500.0,0.00017743,2]
[326794420,1715380244982,-500.0,0.00017743,2]
[326794421,1715380244992,-500.0,0.00017743,2]
[326794422,1715380245002,-500.0,0.00017743,2]
[326794423,1715380245011,-500.0,0.00017743,2]
[326794424,1715380245021,-500.0,0.00017743,2]
[326794425,1715380245030,-500.0,0.00017743,2]
[326794426,1715380245040,-500.0,0.00017743,2]
[326794427,1715380245050,-500.0,0.00017743,2]
[326794428,1715380245060,-500.0,0.00017743,2]
[326794429,1715380245069,-500.0,0.00017743,2]
[326794430,1715380245079,-500.0,0.00017743,2]
[326794431,1715380245088,-500.0,0.00017743,2]
[326794432,1715380245098,-500.0,0.00017743,2]
[326794433,1715380245107,-500.0,0.00017743,2]
[326794434,1715380245117,-500.0,0.00017743,2]
[326794435,1715380245127,-500.0,0.00017743,2]
[326794436,1715380245136,-500.0,0.00017743,2]
[326794437,1715380245146,-500.0,0.00017743,2]
[326794438,1715380245155,-500.0,0.00017743,2]
[326794439,1715380245164,-500.0,0.00017743,2]
[326794440,1715380245174,-500.0,0.00017743,2]
[326794441,1715380245183,-500.0,0.00017743,2]
[326794442,1715380245192,-500.0,0.00017743,2]
[326794443,1715380245201,-500.0,0.00017743,2]
[326794444,1715380245211,-500.0,0.00017743,2]
[326794445,1715380245220,-500.0,0.00017743,2]
[326794446,1715380245230,-500.0,0.00017743,2]
[326794447,1715380245239,-500.0,0.00017743,2]
[326794448,1715380245248,-500.0,0.00017743,2]
[326794449,1715380245257,-500.0,0.00017743,2]
[326794450,1715380245266,-500.0,0.00017743,2]
[326794451,1715380245276,-500.0,0.00017743,2]
[326794452,1715380245285,-500.0,0.00017743,2]
[326794453,1715380245294,-500.0,0.00017743,2]
[326794454,1715380245305,-500.0,0.00017743,2]
[326794455,1715380245315,-500.0,0.00017743,2]
[326794456,1715380245326,-500.0,0.00017743,2]
[326794457,1715380245337,-500.0,0.00017743,2]
[326794458,1715380245347,-500.0,0.00017743,2]
[326794459,1715380245355,-500.0,0.00017743,2]
[326794460,1715380245365,-500.0,0.00017743,2]
[326794461,1715380245374,-500.0,0.00017743,2]
[326794462,1715380245383,-500.0,0.00017743,2]
[326794463,1715380245393,-500.0,0.00017743,2]
[326794464,1715380245402,-500.0,0.00017743,2]
[326794465,1715380245411,-500.0,0.00017743,2]
[326794466,1715380245421,-500.0,0.00017743,2]
[326794467,1715380245430,-500.0,0.00017743,2]
[326794468,1715380245440,-500.0,0.00017743,2]
[326794469,1715380245449,-500.0,0.00017743,2]
[326794470,1715380245458,-500.0,0.00017743,2]
[326794471,1715380245468,-500.0,0.00017743,2]
[326794472,1715380245477,-500.0,0.00017743,2]
[326794473,1715380245486,-500.0,0.00017743,2]
[326794474,1715380245496,-500.0,0.00017743,2]
[326794475,1715380245505,-500.0,0.00017743,2]
[326794476,1715380245514,-500.0,0.00017743,2]
[326794477,1715380245524,-500.0,0.00017743,2]
[326794478,1715380245533,-500.0,0.00017743,2]
[326794479,1715380245542,-500.0,0.00017743,2]
[326794480,1715380245552,-500.0,0.00017743,2]
[326794481,1715380245561,-500.0,0.00017743,2]
[326794482,1715380245570,-500.0,0.00017743,2]
[326794483,1715380245579,-500.0,0.00017743,2]
[326794484,1715380245589,-500.0,0.00017743,2]
[326794485,1715380245598,-500.0,0.00017743,2]
[326794486,1715380245607,-500.0,0.00017743,2]
[326794487,1715380245617,-500.0,0.00017743,2]
[326794488,1715380245626,-500.0,0.00017743,2]
[326794489,1715380245635,-500.0,0.00017743,2]
[326794490,1715380245644,-500.0,0.00017743,2]
[326794491,1715380245653,-500.0,0.00017743,2]
[326794492,1715380245662,-500.0,0.00017743,2]
[326794493,1715380245671,-500.0,0.00017743,2]
[326794494,1715380245681,-500.0,0.00017743,2]
[326794495,1715380245690,-500.0,0.00017743,2]
[326794496,1715380245699,-500.0,0.00017743,2]